fUSD/lending_fUSD_20250904
["ID","MTS","AMOUNT","RATE_DAILY","PERIOD"]
[383585522,1757010642285,-400.0,0.0002498,2]
[383585524,1757010642294,-223.96,0.0002498,2]
[383585526,1757010642304,-400.0,0.0002498,2]
[383585528,1757010642314,-400.0,0.0002498,2]
[383585530,1757010642324,-126754.82728656,0.0002498,3]
[383585547,1757010642491,-13049.9782395,0.0002498,3]
[383585552,1757010642527,-419.29687694,0.0002498,3]
[383585555,1757010642536,-66125.8987117,0.0002498,3]
[383585557,1757010642545,-608.1,0.00024981,2]
[383585559,1757010642555,-400.0,0.00024981,2]
[383585561,1757010642564,-400.0,0.00024981,2]
[383585563,1757010642573,-400.0,0.00024981,2]
[383585565,1757010642583,-400.0,0.00024981,2]
[383585567,1757010642592,-547.51,0.00024981,2]
[383585569,1757010642601,-400.0,0.00024981,2]
[383585571,1757010642611,-400.0,0.00024981,2]
[383585573,1757010642621,-400.0,0.00024981,2]
[383585575,1757010642632,-400.0,0.00024981,2]
[383585577,1757010642641,-961.84042152,0.00024982,2]
[383585579,1757010642651,-179.24815241,0.00024982,2]
[383585581,1757010642660,-400.0,0.00024982,2]
[383585583,1757010642672,-400.0,0.00024982,2]
[383585585,1757010642682,-400.0,0.00024982,2]
[383585587,1757010642691,-400.0,0.00024982,2]
[383585589,1757010642700,-500.0,0.00024982,2]
[383585591,1757010642709,-500.0,0.00024982,2]
[383585593,1757010642718,-400.0,0.00024982,2]
[383585595,1757010642727,-532.64,0.00024982,2]
[383585597,1757010642736,-28044.8204805,0.00024983,3]
[383585599,1757010642745,-22041.9662372,0.00024983,3]
[383585601,1757010642754,-1106.63360326,0.00024983,2]
[383585603,1757010642765,-1251.42678499,0.00024985,2]
[383585604,1757010642775,-153.4701445,0.00024985,2]
[383585605,1757010642784,-281.8332011,0.00024985,2]
[383585606,1757010642793,-1396.21996673,0.00024987,2]
[383585607,1757010642803,-151.0,0.00024987,7]
[383585608,1757010642813,-1541.01314846,0.00024988,2]
[383585609,1757010642822,-2124.3734917,0.00024989,3]
[383585610,1757010642834,-1487.19523166,0.00024989,3]
[383585611,1757010642845,-19070.4168572,0.00024989,3]
[383585612,1757010642855,-8722.0831428,0.00024989,3]
[383585613,1757010643032,-724.0,0.0002368,2]
[383585614,1757010643042,-287.00094526,0.0002489,2]
[383585615,1757010643054,-69.70172066,0.0002489,2]
[383585616,1757010643064,-2136.69827934,0.00024989,3]
[383585619,1757010643078,-635.716992,0.00024989,3]
[383585744,1757010645966,-400.0,0.00024981,2]
[383585745,1757010645976,-301.50000138,0.00024989,3]
[383585764,1757011263808,-199.64,0.00022,2]
[383585765,1757011263832,-232.52946692,0.00022276,2]
[383585766,1757011263858,-151.0,0.00022371,2]
[383585767,1757011263881,-151.0,0.0002238,2]
[383585768,1757011263906,-151.0,0.00022385,2]
[383585769,1757011263935,-409.04043527,0.00022387,2]
[383585770,1757011263960,-2854.83,0.00022388,2]
[383585771,1757011263984,-151.0,0.00022389,2]
[383585772,1757011264009,-150.0,0.00022425,2]
[383585773,1757011264033,-232.52946692,0.00022471,2]
[383585774,1757011264057,-250.0,0.00022474,2]
[383585775,1757011264082,-300.96,0.00022506,2]
[383585776,1757011264106,-222.0,0.00022527,2]
[383585777,1757011264129,-247.19,0.00022577,2]
[383585778,1757011264155,-3010.21128815,0.00022617,2]
[383585779,1757011264182,-232.52946692,0.00022666,2]
[383585780,1757011264207,-232.52946692,0.0002286,2]
[383585781,1757011264234,-232.52946692,0.00023055,2]
[383585782,1757011264263,-252.62,0.00023124,2]
[383585783,1757011264289,-300.0,0.00023199,2]
[383585784,1757011264314,-514.64478986,0.000232,2]
[383585785,1757011264339,-232.52946692,0.0002325,2]
[383585786,1757011264365,-500.76,0.00023263,2]
[383585787,1757011264390,-159.0,0.00023349,2]
[383585788,1757011264418,-1200.0,0.00023349,2]
[383585789,1757011264441,-212.59699798,0.00023351,2]
[383585790,1757011264466,-160.0,0.00023351,2]
[383585791,1757011264491,-160.0,0.00023351,2]
[383585792,1757011264514,-200.0,0.00023362,2]
[383585793,1757011264538,-1000.0,0.00023472,2]
[383585794,1757011264562,-300.0,0.00023472,2]
[383585795,1757011264585,-256.62748029,0.00023473,2]
[383585796,1757011264609,-5026.70220693,0.00023473,2]
[383585797,1757011286032,152.49,0.00013699,2]
[383585798,1757011301711,-152.49,0.00020187,2]
[383585799,1757011301736,-151.0,0.00022427,2]
[383585800,1757011301759,-27936.45578472,0.00023473,2]
[383585801,1757011301784,-8847.39737216,0.00023473,2]
[383585802,1757011301808,-157.29379931,0.00023473,2]
[383585803,1757011301832,-150.0,0.00023518,2]
[383585804,1757011301857,-525.27649362,0.00023519,2]
[383585805,1757011301879,-669.47004089,0.00023521,2]
[383585806,1757011301900,-813.66358815,0.00023522,2]
[383585807,1757011301922,-957.85713542,0.00023524,2]
[383585808,1757011301944,-1102.05068269,0.00023525,2]
[383585809,1757011301966,-1246.24422996,0.00023527,2]
[383585810,1757011301988,-1390.43777722,0.00023528,2]
[383585811,1757011302011,-1534.63132449,0.0002353,2]
[383585812,1757011302034,-1678.82487176,0.00023531,2]
[383585813,1757011302056,-151.0,0.00023538,7]
[383585814,1757011302077,-151.0,0.00023538,7]
[383585815,1757011302099,-400.0,0.0002354,2]
[383585816,1757011302121,-400.0,0.0002354,2]
[383585817,1757011302142,-400.0,0.0002354,2]
[383585818,1757011302163,-230.887462,0.0002354,2]
[383585819,1757011302185,-400.0,0.0002354,2]
[383585820,1757011302207,-400.0,0.0002354,2]
[383585821,1757011302230,-400.0,0.0002354,2]
[383585822,1757011302254,-507.83196067,0.0002354,2]
[383585823,1757011302280,-400.0,0.0002354,2]
[383585824,1757011302304,-876.11,0.0002354,2]
[383585825,1757011302327,-400.0,0.0002354,2]
[383585826,1757011302350,-400.0,0.0002354,2]
[383585827,1757011302372,-400.0,0.0002354,2]
[383585828,1757011302408,-474.181721,0.0002354,2]
[383585829,1757011302436,-269.020156,0.0002354,2]
[383585830,1757011302459,-400.0,0.0002354,2]
[383585831,1757011302482,-400.0,0.0002354,2]
[383585832,1757011302505,-400.0,0.0002354,2]
[383585833,1757011302528,-400.0,0.0002354,2]
[383585834,1757011302550,-400.0,0.0002354,2]
[383585835,1757011302574,-400.0,0.0002354,2]
[383585836,1757011302596,-180.7718342,0.0002354,2]
[383585837,1757011302619,-399.94778788,0.0002354,2]
[383585838,1757011302643,-232.402788,0.0002354,2]
[383585839,1757011302667,-400.0,0.0002354,2]
[383585840,1757011302690,-400.0,0.0002354,2]
[383585841,1757011302713,-400.0,0.0002354,2]
[383585842,1757011302736,-400.0,0.0002354,2]
[383585843,1757011302758,-400.0,0.0002354,2]
[383585844,1757011302781,-400.0,0.0002354,2]
[383585845,1757011302804,-400.0,0.0002354,2]
[383585846,1757011302825,-400.0,0.0002354,2]
[383585847,1757011302847,-400.0,0.0002354,2]
[383585848,1757011302874,-400.0,0.0002354,2]
[383585849,1757011302898,-480.19,0.0002354,2]
[383585850,1757011302920,-400.0,0.0002354,2]
[383585851,1757011302942,-400.0,0.0002354,2]
[383585852,1757011302967,-400.0,0.0002354,2]
[383585853,1757011302992,-400.0,0.0002354,2]
[383585854,1757011303018,-400.0,0.0002354,2]
[383585855,1757011303041,-400.0,0.0002354,2]
[383585856,1757011303064,-400.0,0.0002354,2]
[383585857,1757011303088,-400.0,0.0002354,2]
[383585858,1757011303111,-400.0,0.0002354,2]
[383585859,1757011303134,-400.0,0.0002354,2]
[383585860,1757011303159,-400.0,0.0002354,2]
[383585861,1757011303184,-427.57,0.0002354,2]
[383585862,1757011303207,-400.0,0.0002354,2]
[383585863,1757011303231,-562.99,0.0002354,2]
[383585864,1757011303258,-400.0,0.0002354,2]
[383585865,1757011303282,-400.0,0.0002354,2]
[383585866,1757011303306,-400.0,0.0002354,2]
[383585867,1757011303330,-400.0,0.0002354,2]
[383585868,1757011303360,-400.0,0.0002354,2]
[383585869,1757011303385,-431.66,0.0002354,2]
[383585870,1757011303409,-402.09594922,0.0002354,2]
[383585871,1757011303434,-400.0,0.0002354,2]
[383585872,1757011303458,-400.0,0.0002354,2]
[383585873,1757011303482,-400.0,0.0002354,2]
[383585874,1757011303507,-400.0,0.0002354,2]
[383585875,1757011303533,-400.0,0.0002354,2]
[383585876,1757011303559,-400.0,0.0002354,2]
[383585877,1757011303584,-400.0,0.0002354,2]
[383585878,1757011303608,-434.75,0.0002354,2]
[383585879,1757011303633,-400.0,0.0002354,2]
[383585880,1757011303656,-400.0,0.0002354,2]
[383585881,1757011303679,-509.85,0.0002354,2]
[383585882,1757011303702,-435.2,0.0002354,2]
[383585883,1757011303725,-400.0,0.0002354,2]
[383585884,1757011303749,-473.43,0.0002354,2]
[383585885,1757011303772,-400.0,0.0002354,2]
[383585886,1757011303795,-400.0,0.0002354,2]
[383585887,1757011303817,-400.0,0.0002354,2]
[383585888,1757011303841,-400.0,0.0002354,2]
[383585889,1757011303864,-400.0,0.0002354,2]
[383585890,1757011303887,-400.0,0.0002354,2]
[383585891,1757011303910,-400.0,0.0002354,2]
[383585892,1757011303936,-400.0,0.0002354,2]
[383585893,1757011303959,-400.0,0.0002354,2]
[383585894,1757011303981,-400.0,0.0002354,2]
[383585895,1757011304007,-522.33,0.0002354,2]
[383585896,1757011304030,-400.0,0.0002354,2]
[383585897,1757011304053,-400.0,0.0002354,2]
[383585898,1757011304075,-400.0,0.0002354,2]
[383585899,1757011304100,-400.0,0.0002354,2]
[383585900,1757011304123,-400.0,0.0002354,2]
[383585901,1757011304145,-400.0,0.0002354,2]
[383585902,1757011304167,-400.0,0.0002354,2]
[383585903,1757011304190,-400.0,0.0002354,2]
[383585904,1757011304213,-400.0,0.0002354,2]
[383585905,1757011304236,-400.0,0.0002354,2]
[383585906,1757011304267,-400.0,0.0002354,2]
[383585907,1757011304290,-400.0,0.0002354,2]
[383585908,1757011304314,-400.0,0.0002354,2]
[383585909,1757011304337,-400.0,0.0002354,2]
[383585910,1757011304361,-400.0,0.0002354,2]
[383585911,1757011304386,-402.04,0.0002354,2]
[383585912,1757011304409,-400.0,0.0002354,2]
[383585913,1757011304432,-400.0,0.0002354,2]
[383585914,1757011304456,-400.0,0.0002354,2]
[383585915,1757011304481,-400.0,0.0002354,2]
[383585916,1757011304505,-400.0,0.0002354,2]
[383585917,1757011304532,-400.0,0.0002354,2]
[383585918,1757011304556,-400.0,0.0002354,2]
[383585919,1757011304582,-400.0,0.0002354,2]
[383585920,1757011304605,-400.0,0.0002354,2]
[383585921,1757011304630,-400.0,0.0002354,2]
[383585922,1757011304656,-400.0,0.0002354,2]
[383585923,1757011304682,-400.0,0.0002354,2]
[383585924,1757011304709,-400.0,0.0002354,2]
[383585925,1757011304735,-514.19,0.0002354,2]
[383585926,1757011304760,-400.0,0.0002354,2]
[383585927,1757011304787,-400.0,0.0002354,2]
[383585928,1757011304811,-400.0,0.0002354,2]
[383585929,1757011304836,-400.0,0.0002354,2]
[383585930,1757011304862,-400.0,0.0002354,2]
[383585931,1757011304886,-400.0,0.0002354,2]
[383585932,1757011304911,-400.0,0.0002354,2]
[383585933,1757011304935,-400.0,0.0002354,2]
[383585934,1757011304961,-400.0,0.0002354,2]
[383585935,1757011304986,-400.0,0.0002354,2]
[383585936,1757011305013,-411.06,0.0002354,2]
[383585937,1757011305038,-400.0,0.0002354,2]
[383585938,1757011305064,-400.0,0.0002354,2]
[383585939,1757011305088,-442.02,0.0002354,2]
[383585940,1757011305114,-410.42,0.0002354,2]
[383585941,1757011305137,-400.0,0.0002354,2]
[383585942,1757011305160,-400.0,0.0002354,2]
[383585943,1757011305182,-400.0,0.0002354,2]
[383585944,1757011305205,-400.0,0.0002354,2]
[383585945,1757011305228,-400.0,0.0002354,2]
[383585946,1757011305254,-400.0,0.0002354,2]
[383585947,1757011305277,-429.8,0.0002354,2]
[383585948,1757011305301,-400.0,0.0002354,2]
[383585949,1757011305325,-400.0,0.0002354,2]
[383585950,1757011305349,-400.0,0.0002354,2]
[383585951,1757011305374,-400.0,0.0002354,2]
[383585952,1757011305397,-400.0,0.0002354,2]
[383585953,1757011305423,-400.0,0.0002354,2]
[383585954,1757011305446,-400.0,0.0002354,2]
[383585955,1757011305472,-400.0,0.0002354,2]
[383585956,1757011305496,-400.0,0.0002354,2]
[383585957,1757011305519,-400.0,0.0002354,2]
[383585958,1757011305544,-14324.15724064,0.00023541,2]
[383585959,1757011327876,13895.819576,7.945e-05,2]
[383585960,1757011343336,-172.58,0.000221,2]
[383585961,1757011343361,-2212.57,0.00023434,2]
[383585962,1757011343384,-3010.21128815,0.00023434,2]
[383585963,1757011343406,-289.24003376,0.00023459,2]
[383585964,1757011343430,-151.0,0.00023459,2]
[383585965,1757011343454,-273.42472087,0.00023459,2]
[383585966,1757011343477,-600.0,0.00023459,2]
[383585967,1757011343502,-500.0,0.00023459,2]
[383585968,1757011343527,-160.0,0.00023473,2]
[383585969,1757011343552,-514.64478986,0.00023473,2]
[383585970,1757011343577,-160.0,0.00023473,2]
[383585971,1757011343601,-500.0,0.00023514,2]
[383585972,1757011343627,-400.0,0.0002354,2]
[383585973,1757011343652,-400.0,0.0002354,2]
[383585974,1757011343679,-263.32916736,0.0002354,2]
[383585975,1757011356353,500.0,0.00019178,2]
[383585976,1757011356828,500.0,0.00019543,2]
[383585977,1757011356940,500.0,0.00019909,2]
[383585978,1757011457267,154.82,0.00011192,2]
[383585979,1757011457527,154.82,0.00014923,2]
[383585980,1757011457736,154.82,0.00018653,2]
[383585985,1757011615195,210.32,0.00024846,120]
[383585986,1757011615408,210.32,0.00027607,120]
[383586014,1757011831922,-500.0,0.00020274,2]
[383586015,1757011831933,-500.0,0.00020639,2]
[383586016,1757011831943,-359.52016237,0.00021004,2]
[383586017,1757011831952,-500.0,0.00021005,2]
[383586018,1757011831963,-500.0,0.0002137,2]
[383586019,1757011831974,-500.0,0.00021735,2]
[383586020,1757011831984,-500.0,0.000219,2]
[383586021,1757011831994,-179.68,0.00022,2]
[383586022,1757011832004,-1200.0,0.00022079,2]
[383586023,1757011832015,-300.0,0.00022079,2]
[383586024,1757011832028,-18065.79,0.0002208,2]
[383586025,1757011832038,-210.32,0.00022085,2]
[383586026,1757011832048,-887.0,0.00022085,2]
[383586027,1757011832057,-500.0,0.000221,2]
[383586028,1757011832066,-666.0,0.00022118,3]
[383586029,1757011832075,-167.15,0.00022151,2]
[383586030,1757011832085,-154.82,0.00022384,2]
[383586031,1757011832094,-150.0,0.00022463,2]
[383586032,1757011832104,-150.0,0.00022463,2]
[383586033,1757011832113,-500.0,0.00022466,2]
[383586034,1757011832123,-191.9,0.00022477,2]
[383586035,1757011832132,-200.0,0.00022518,2]
[383586036,1757011832142,-3010.21128815,0.00022617,2]
[383586037,1757011832152,-500.0,0.00022831,2]
[383586038,1757011832162,-624.31,0.00023091,2]
[383586039,1757011832173,-160.0,0.00023093,7]
[383586040,1757011832184,-160.0,0.000231,2]
[383586041,1757011832194,-514.64478986,0.000231,2]
[383586042,1757011832212,-160.0,0.000231,2]
[383586044,1757011832228,-500.0,0.00023196,2]
[383586045,1757011832238,-523.0,0.000232,2]
[383586047,1757011832247,-157.05221487,0.0002344,2]
[383586049,1757011832257,-257.38487697,0.00023462,2]
[383586051,1757011832268,-212.59699798,0.00023472,2]
[383586053,1757011832278,-8667.89561041,0.0002351,2]
[383586055,1757011832289,-4591.64765691,0.00023512,2]
[383586056,1757011832299,-16656.2057689,0.00023513,2]
[383586057,1757011832308,-2308.7639466,0.00023513,2]
[383586058,1757011832318,-150.0,0.00023518,2]
[383586059,1757011832328,-528.83129641,0.00023519,2]
[383586060,1757011832338,-674.0006719,0.00023521,2]
[383586061,1757011832348,-819.17004738,0.00023522,2]
[383586062,1757011832358,-964.33942287,0.00023524,2]
[383586063,1757011832367,-1109.50879835,0.00023525,2]
[383586064,1757011832379,-1254.67817384,0.00023527,2]
[383586065,1757011832389,-500.0,0.00023527,2]
[383586066,1757011832399,-1399.84754932,0.00023528,2]
[383586067,1757011832408,-1545.01692481,0.0002353,2]
[383586068,1757011832418,-411.24,0.0002353,2]
[383586069,1757011832427,-411.24,0.0002353,2]
[383586071,1757011832436,-566.1,0.0002353,2]
[383586073,1757011832446,-1690.18630028,0.00023531,2]
[383586075,1757011832455,-224.7,0.00023539,2]
[383586076,1757011832465,-534.0,0.00023539,2]
[383586077,1757011832474,-497.11,0.00023539,2]
[383586078,1757011832483,-400.0,0.00023539,2]
[383586080,1757011832493,-400.0,0.00023539,2]
[383586082,1757011832503,-400.0,0.00023539,2]
[383586084,1757011832512,-380.20665226,0.00023539,2]
[383586085,1757011832525,-400.0,0.00023539,2]
[383586086,1757011832535,-426.35,0.00023539,2]
[383586087,1757011832544,-539.88,0.00023539,2]
[383586088,1757011832554,-403.57310072,0.00023539,2]
[383586089,1757011832564,-477.83,0.00023539,2]
[383586090,1757011832574,-400.0,0.00023539,2]
[383586091,1757011832584,-400.0,0.00023539,2]
[383586092,1757011832593,-400.0,0.00023539,2]
[383586093,1757011832603,-400.0,0.00023539,2]
[383586094,1757011832613,-400.0,0.00023539,2]
[383586095,1757011832623,-400.0,0.00023539,2]
[383586096,1757011832632,-317.719573,0.00023539,2]
[383586097,1757011832642,-157.169112,0.00023539,2]
[383586098,1757011832652,-404.75605089,0.00023539,2]
[383586099,1757011832661,-400.0,0.00023539,2]
[383586100,1757011832671,-473.28,0.00023539,2]
[383586101,1757011832680,-402.75078179,0.00023539,2]
[383586102,1757011832691,-400.0,0.00023539,2]
[383586103,1757011832702,-400.0,0.00023539,2]
[383586104,1757011832712,-400.0,0.00023539,2]
[383586105,1757011832722,-401.63,0.00023539,2]
[383586106,1757011832743,-400.0,0.00023539,2]
[383586107,1757011832754,-224.0,0.00023539,2]
[383586108,1757011832765,-232.402788,0.00023539,2]
[383586109,1757011832775,-400.0,0.00023539,2]
[383586110,1757011832784,-400.0,0.00023539,2]
[383586111,1757011832794,-400.0,0.00023539,2]
[383586112,1757011832803,-400.0,0.00023539,2]
[383586113,1757011832813,-400.0,0.00023539,2]
[383586114,1757011832824,-400.0,0.00023539,2]
[383586115,1757011832834,-400.0,0.0002354,2]
[383586116,1757011832844,-400.0,0.0002354,2]
[383586117,1757011832854,-400.0,0.0002354,2]
[383586118,1757011832864,-400.0,0.0002354,2]
[383586119,1757011832874,-400.0,0.0002354,2]
[383586120,1757011832883,-400.0,0.0002354,2]
[383586121,1757011832893,-530.91,0.0002354,2]
[383586122,1757011832903,-400.0,0.0002354,2]
[383586123,1757011832913,-400.0,0.0002354,2]
[383586124,1757011832923,-490.89,0.0002354,2]
[383586125,1757011832932,-407.21,0.0002354,2]
[383586126,1757011832943,-400.0,0.0002354,2]
[383586127,1757011832953,-400.0,0.0002354,2]
[383586128,1757011832962,-400.0,0.0002354,2]
[383586129,1757011832972,-435.95,0.0002354,2]
[383586130,1757011832981,-400.0,0.0002354,2]
[383586131,1757011832991,-400.0,0.0002354,2]
[383586132,1757011833001,-500.0,0.0002354,2]
[383586133,1757011833010,-500.0,0.0002354,2]
[383586134,1757011833020,-400.0,0.0002354,2]
[383586135,1757011833030,-400.0,0.0002354,2]
[383586136,1757011833040,-400.0,0.0002354,2]
[383586137,1757011833050,-400.0,0.0002354,2]
[383586138,1757011833061,-536.97,0.0002354,2]
[383586139,1757011833071,-400.0,0.0002354,2]
[383586140,1757011833080,-400.0,0.0002354,2]
[383586141,1757011833090,-400.0,0.0002354,2]
[383586142,1757011833101,-400.0,0.0002354,2]
[383586143,1757011833110,-400.0,0.0002354,2]
[383586144,1757011833120,-400.0,0.0002354,2]
[383586145,1757011833129,-400.0,0.0002354,2]
[383586146,1757011833139,-400.0,0.0002354,2]
[383586147,1757011833149,-509.07,0.0002354,2]
[383586148,1757011833159,-517.17,0.0002354,2]
[383586149,1757011833168,-400.0,0.0002354,2]
[383586150,1757011833178,-400.0,0.0002354,2]
[383586151,1757011833188,-400.0,0.0002354,2]
[383586152,1757011833197,-400.0,0.0002354,2]
[383586153,1757011833207,-400.0,0.0002354,2]
[383586154,1757011833217,-400.0,0.0002354,2]
[383586155,1757011833227,-400.0,0.0002354,2]
[383586156,1757011833237,-400.0,0.0002354,2]
[383586157,1757011833246,-400.0,0.0002354,2]
[383586158,1757011833256,-400.0,0.0002354,2]
[383586159,1757011833266,-400.0,0.0002354,2]
[383586160,1757011833276,-400.0,0.0002354,2]
[383586161,1757011833286,-400.0,0.0002354,2]
[383586162,1757011833296,-400.0,0.0002354,2]
[383586163,1757011833305,-400.0,0.0002354,2]
[383586164,1757011833315,-400.0,0.0002354,2]
[383586165,1757011833325,-400.0,0.0002354,2]
[383586166,1757011833334,-400.0,0.0002354,2]
[383586167,1757011833344,-400.0,0.0002354,2]
[383586168,1757011833358,-1000.0,0.0002354,2]
[383586169,1757011833368,-164.11,0.0002354,2]
[383586170,1757011833377,-400.0,0.0002354,2]
[383586171,1757011833387,-400.0,0.0002354,2]
[383586172,1757011833397,-400.0,0.0002354,2]
[383586173,1757011833407,-400.0,0.0002354,2]
[383586174,1757011833419,-428.52,0.0002354,2]
[383586175,1757011833429,-400.0,0.0002354,2]
[383586176,1757011833439,-400.0,0.0002354,2]
[383586177,1757011833449,-400.0,0.0002354,2]
[383586178,1757011833459,-400.0,0.0002354,2]
[383586179,1757011833471,-400.0,0.0002354,2]
[383586180,1757011833481,-400.0,0.0002354,2]
[383586181,1757011833491,-400.0,0.0002354,2]
[383586182,1757011833501,-542.91,0.0002354,2]
[383586183,1757011833510,-400.0,0.0002354,2]
[383586184,1757011833522,-400.0,0.0002354,2]
[383586185,1757011833532,-400.0,0.0002354,2]
[383586186,1757011833542,-400.0,0.0002354,2]
[383586187,1757011833553,-400.0,0.0002354,2]
[383586188,1757011833563,-400.0,0.0002354,2]
[383586189,1757011833573,-400.0,0.0002354,2]
[383586190,1757011833583,-400.0,0.0002354,2]
[383586191,1757011833593,-400.0,0.0002354,2]
[383586192,1757011833603,-400.0,0.0002354,2]
[383586193,1757011833612,-400.0,0.0002354,2]
[383586194,1757011833622,-400.0,0.0002354,2]
[383586195,1757011833632,-400.0,0.0002354,2]
[383586196,1757011833643,-400.0,0.0002354,2]
[383586197,1757011833652,-400.0,0.0002354,2]
[383586198,1757011833662,-466.97,0.0002354,2]
[383586199,1757011833672,-400.0,0.0002354,2]
[383586200,1757011833682,-400.0,0.0002354,2]
[383586201,1757011833695,-400.0,0.0002354,2]
[383586202,1757011833705,-400.0,0.0002354,2]
[383586203,1757011833715,-400.0,0.0002354,2]
[383586204,1757011833724,-400.0,0.0002354,2]
[383586205,1757011833733,-400.0,0.0002354,2]
[383586206,1757011833743,-400.0,0.0002354,2]
[383586207,1757011833753,-400.0,0.0002354,2]
[383586208,1757011833763,-400.0,0.0002354,2]
[383586209,1757011833774,-425.76,0.0002354,2]
[383586210,1757011833783,-400.0,0.0002354,2]
[383586211,1757011833793,-400.0,0.0002354,2]
[383586212,1757011833806,-400.0,0.0002354,2]
[383586213,1757011833816,-400.0,0.0002354,2]
[383586214,1757011833826,-400.0,0.0002354,2]
[383586215,1757011833836,-400.0,0.0002354,2]
[383586216,1757011833845,-400.0,0.0002354,2]
[383586217,1757011833854,-400.0,0.0002354,2]
[383586218,1757011833864,-400.0,0.0002354,2]
[383586219,1757011833874,-400.0,0.0002354,2]
[383586220,1757011833884,-400.0,0.0002354,2]
[383586221,1757011833894,-403.54471404,0.0002354,2]
[383586222,1757011833904,-400.0,0.0002354,2]
[383586223,1757011833914,-400.0,0.0002354,2]
[383586224,1757011833931,-400.0,0.0002354,2]
[383586225,1757011833941,-400.0,0.0002354,2]
[383586226,1757011833950,-400.0,0.0002354,2]
[383586227,1757011833960,-400.0,0.0002354,2]
[383586228,1757011833970,-400.0,0.0002354,2]
[383586229,1757011833979,-400.0,0.0002354,2]
[383586230,1757011833989,-400.0,0.0002354,2]
[383586231,1757011833999,-400.0,0.0002354,2]
[383586232,1757011834009,-400.0,0.0002354,2]
[383586233,1757011834019,-400.0,0.0002354,2]
[383586234,1757011834028,-400.0,0.0002354,2]
[383586235,1757011834038,-400.0,0.0002354,2]
[383586236,1757011834048,-400.0,0.0002354,2]
[383586237,1757011834057,-400.0,0.0002354,2]
[383586238,1757011834067,-400.0,0.0002354,2]
[383586239,1757011834077,-407.28,0.0002354,2]
[383586240,1757011834086,-402.33293698,0.0002354,2]
[383586241,1757011834096,-400.0,0.0002354,2]
[383586242,1757011834105,-400.0,0.0002354,2]
[383586243,1757011834115,-400.0,0.0002354,2]
[383586244,1757011834124,-400.0,0.0002354,2]
[383586245,1757011834134,-400.0,0.0002354,2]
[383586246,1757011834144,-237.81911095,0.0002354,2]
[383586247,1757011834154,-400.0,0.0002354,2]
[383586248,1757011834164,-234.8309699,0.0002354,2]
[383586249,1757011834174,-400.0,0.0002354,2]
[383586250,1757011834183,-400.0,0.0002354,2]
[383586251,1757011834194,-787.26,0.0002354,2]
[383586252,1757011834203,-787.26,0.0002354,2]
[383586253,1757011834213,-400.0,0.0002354,2]
[383586254,1757011834224,-400.0,0.0002354,2]
[383586255,1757011834234,-400.0,0.0002354,2]
[383586256,1757011834244,-500.38,0.0002354,2]
[383586257,1757011834254,-400.0,0.0002354,2]
[383586258,1757011834268,-400.0,0.0002354,2]